bitfinex-derivatives/quotes_SOLF0:USTF0_20240823
["timestamp","ask_amount","ask_price","bid_price","bid_amount"]
[1724437740062,3.40154527,148.87,148.84,5.19867106]
[1724437740758,3.40154527,148.87,148.84,0.04277106]
[1724437741466,3.40154527,148.87,148.84,3.40127106]
[1724437741764,0.04354527,148.87,148.84,0.04277106]
[1724437742468,0.04354527,148.87,148.85,3.29692856]
[1724437742665,0.04354527,148.87,148.84,3.40117106]
[1724437742960,0.04354527,148.87,148.85,3.29745882]
[1724437743161,0.04354527,148.87,148.84,0.04277106]
[1724437743358,3.3583,148.85,148.84,0.04277106]
[1724437744361,3.3593,148.81,148.77,3.3599]
[1724437744665,3.3593,148.81,148.78,3.30011453]
[1724437744866,3.3593,148.81,148.79,3.30011453]
[1724437745065,3.3593,148.81,148.8,3.30011453]
[1724437745257,3.3593,148.81,148.77,3.3599]
[1724437745461,0.04348741,148.8,148.78,0.04660161]
[1724437745661,0.04348741,148.8,148.78,3.34669577]
[1724437745865,0.04348741,148.8,148.78,0.04660161]
[1724437746263,42.56348741,148.8,148.72,5.3991]
[1724437746462,42.52,148.73,148.63,42.32720284]
[1724437746759,3.361,148.73,148.64,42.52]
[1724437746962,42.52,148.75,148.64,45.82847445]
[1724437747272,3.3614,148.72,148.66,3.3624]
[1724437747473,0.04417209,148.71,148.68,0.04493479]
[1724437748058,3.45175165,148.71,148.68,0.04493479]
[1724437748266,0.04417209,148.71,148.68,0.04493479]
[1724437748570,3.3619,148.69,148.68,0.04493479]
[1724437751369,3.3617,148.7,148.68,0.04493479]
[1724437751562,0.04417209,148.71,148.68,0.04493479]
[1724437751767,3.3619,148.7,148.61,3.4152716]
[1724437751963,3.48499855,148.71,148.6,2.5728]
[1724437752176,42.52,148.73,148.6,2.5728]
[1724437752466,73.12846842,148.77,148.59,2.7127]
[1724437752467,42.52,148.71,148.59,2.7127]
[1724437752673,42.52,148.71,148.6,2.5728]
[1724437752860,0.04545996,148.66,148.64,0.04943034]
[1724437753062,0.04259234,148.66,148.64,0.04943034]
[1724437754873,3.3628,148.65,148.64,0.04943034]
[1724437755069,42.63,148.65,148.58,2.6079]
[1724437755271,42.63,148.65,148.52,45.2867]
[1724437755472,3.3635,148.62,148.56,3.3648]
[1724437755769,3.3635,148.62,148.55,45.97892102]
[1724437756073,0.04766986,148.6,148.57,0.04630165]
[1724437757072,0.04766986,148.6,148.52,5.2202]
[1724437757073,42.63,148.58,148.4,7.02681328]
[1724437757376,42.63,148.65,148.53,42.63]
[1724437757569,42.63,148.65,148.54,2.817]
[1724437757772,3.32448357,148.66,148.55,42.63]
[1724437757972,3.3624,148.67,148.55,47.9731]
[1724437758165,0.04835186,148.62,148.6,3.41472805]
[1724437758364,0.04892853,148.62,148.6,0.05092805]
[1724437758578,3.3621,148.69,148.63,3.3633]
[1724437758877,3.34399582,148.69,148.61,3.35812538]
[1724437759072,3.34399582,148.69,148.57,42.63]
[1724437759272,3.3623,148.68,148.57,42.63]
[1724437759776,0.04831157,148.64,148.61,0.04505103]
[1724437759972,0.04831157,148.64,148.62,3.3633]
[1724437760170,0.04831157,148.64,148.61,0.04505103]
[1724437761075,0.04831157,148.64,148.61,3.40855103]
[1724437761270,0.04831157,148.64,148.61,0.04505103]
[1724437762071,42.63,148.62,148.49,42.63]
[1724437762272,42.63,148.62,148.54,2.7048]
[1724437762478,42.63,148.62,148.54,6.14984856]
[1724437762867,45.9937,148.62,148.56,3.3649]
[1724437763068,42.63,148.62,148.54,6.14984856]
[1724437763369,0.04983821,148.6,148.58,0.04964167]
[1724437766379,0.04983821,148.6,148.49,42.63]
[1724437766380,42.63,148.59,148.41,7.02733357]
[1724437766680,42.63,148.68,148.46,48.1004]
[1724437766681,42.63,148.61,148.46,48.1004]
[1724437766978,3.3642,148.59,148.46,51.41321734]
[1724437767179,42.63,148.61,148.46,51.41321734]
[1724437767479,0.04417447,148.55,148.52,0.05110098]
[1724437767686,0.05126565,148.55,148.52,0.04586823]
[1724437767988,0.05126565,148.55,148.53,3.3654]
[1724437768284,0.05126565,148.55,148.54,5.3848]
[1724437768985,3.33905881,148.67,148.54,5.3848]
[1724437769179,42.63,148.62,148.54,8.77119542]
[1724437769373,3.3638,148.61,148.56,3.3648]
[1724437769779,3.3638,148.61,148.54,8.77119542]
[1724437769975,0.04893309,148.59,148.56,0.04687379]
[1724437771173,3.3645,148.58,148.56,0.04687379]
[1724437772988,0.04893309,148.59,148.56,0.04687379]
[1724437775782,0.04893309,148.59,148.56,3.41177379]
[1724437776385,0.04893309,148.59,148.56,0.04687379]
[1724437778189,0.04893309,148.59,148.57,3.3646]
[1724437779085,0.04893309,148.59,148.58,3.3644]
[1724437779282,0.04893309,148.59,148.56,0.04687379]
[1724437780588,0.04893309,148.59,148.56,2.82067379]
[1724437781189,0.04893309,148.59,148.57,3.3646]
[1724437781986,0.04893309,148.59,148.56,2.82067379]
[1724437782791,0.04893309,148.59,148.56,6.18547379]
[1724437783693,3.3656,148.53,148.46,6.31182215]
[1724437783997,3.30273053,148.59,148.46,3.4302244]
[1724437784187,26.9,148.54,148.37,11.65692921]
[1724437784393,26.9,148.54,148.37,2.5985]
[1724437784394,47.0,148.54,148.37,2.5985]
[1724437784589,42.65,148.49,148.37,2.5985]
[1724437784797,47.0,148.54,148.37,45.2485]
[1724437784996,47.0,148.54,148.41,42.65]
[1724437785306,47.0,148.54,148.37,48.61682764]
[1724437785307,37.33417277,148.82,148.44,42.69412962]
[1724437785497,62.81739635,148.86,148.47,42.65]
[1724437785498,44.36096241,148.84,148.47,42.65]
[1724437785690,42.65,148.75,148.48,1.3993]
[1724437786000,42.65,148.68,148.48,1.3993]
[1724437786201,3.35456685,148.68,148.48,1.3993]
[1724437786499,42.65,148.56,148.48,1.3993]
[1724437786693,42.65,148.54,148.48,1.3993]
[1724437786897,42.65,148.51,148.45,4.153]
[1724437787094,0.04678931,148.59,148.45,4.153]
[1724437787302,42.65,148.56,148.45,4.153]
[1724437787495,46.08238418,148.56,148.45,4.153]
[1724437787693,46.08238418,148.56,148.5,0.04919496]
[1724437787891,42.65,148.53,148.5,0.04919496]
[1724437788195,42.65,148.51,148.5,0.04919496]
[1724437788697,42.65,148.55,148.43,42.65]
[1724437789195,0.04628895,148.52,148.49,0.05048846]
[1724437789592,42.65,148.56,148.45,42.65]
[1724437789793,69.55,148.6,148.48,42.65]
[1724437789794,26.9,148.6,148.48,42.65]
[1724437789994,0.04395033,148.52,148.49,5.26378196]
[1724437790196,3.4202035,148.58,148.49,5.2155]
[1724437790409,26.9,148.6,148.49,5.2155]
[1724437790599,0.04436999,148.55,148.52,0.05153575]
[1724437792904,42.65,148.63,148.52,0.05153575]
[1724437793098,42.65,148.63,148.5,42.65]
[1724437793297,3.34613111,148.62,148.5,42.65]
[1724437793501,42.65,148.63,148.5,42.65]
[1724437793701,3.387861,148.62,148.5,42.65]
[1724437794199,3.387861,148.62,148.49,5.2155]
[1724437794200,0.05164,148.57,148.55,0.04316108]
[1724437794400,3.3631,148.64,148.53,3.3655]
[1724437794599,3.3631,148.64,148.54,3.35151561]
[1724437795200,3.3631,148.64,148.53,3.3655]
[1724437795501,0.04731673,148.6,148.57,42.69536949]
[1724437795696,42.65,148.7,148.58,2.627]
[1724437796100,46.09468941,148.7,148.59,1.3201]
[1724437796505,3.3621,148.69,148.59,4.6842]
[1724437796705,46.09468941,148.7,148.59,4.6842]
[1724437796706,46.09468941,148.7,148.59,1.3201]
[1724437797103,0.05159308,148.66,148.63,0.04852362]
[1724437798108,3.3629,148.65,148.63,0.04852362]
[1724437798610,0.05159308,148.66,148.63,0.04852362]
[1724437799615,3.41419308,148.66,148.63,0.04852362]
[1724437800122,0.05159308,148.66,148.63,0.04852362]
[1724437800808,26.92,148.72,148.63,42.69852362]
[1724437801001,42.65,148.74,148.64,1.3604]
[1724437801707,42.65,148.74,148.59,1.3201]
[1724437801708,42.65,148.69,148.59,1.3201]
[1724437801913,0.04522458,148.65,148.63,0.04877559]
[1724437803310,42.65,148.76,148.63,0.04877559]
[1724437803511,73.12846842,148.77,148.67,42.65]
[1724437803809,42.65,148.9,148.69,42.65]
[1724437804009,69.55,148.82,148.7,1.2817]
[1724437804310,3.391395,148.81,148.7,1.2817]
[1724437804511,0.05057614,148.77,148.75,0.05072974]
[1724437804713,0.04546479,148.77,148.75,0.04876445]
[1724437804912,3.3589,148.83,148.74,42.65]
[1724437805108,42.65,148.88,148.77,42.65]
[1724437805312,3.3581,148.86,148.8,3.3592]
[1724437805804,3.3581,148.86,148.78,4.0927]
[1724437805805,42.65,148.88,148.78,4.0927]
[1724437806010,0.04660847,148.84,148.82,0.04256792]
[1724437808816,42.65,148.83,148.82,0.04256792]
[1724437809011,46.0088,148.83,148.82,0.04256792]
[1724437810012,42.65,148.83,148.75,1.2752]
[1724437810207,42.65,148.81,148.69,5.9542]
[1724437810404,3.3608,148.74,148.7,1.3184]
[1724437810608,42.65,148.81,148.7,1.3184]
[1724437810609,42.65,148.76,148.7,1.3184]
[1724437810916,3.3619,148.7,148.62,42.65]
[1724437811213,42.65,148.72,148.63,1.4048]
[1724437811411,3.3626,148.67,148.63,1.4048]
[1724437811610,42.65,148.69,148.65,0.04475248]
[1724437812016,0.05145134,148.66,148.59,4.6826]
[1724437812221,0.05145134,148.66,148.61,0.04555688]
[1724437812710,3.3631,148.64,148.61,0.04555688]
[1724437812922,0.05145134,148.66,148.61,0.04555688]
[1724437814112,0.05145134,148.66,148.61,3.40925688]
[1724437814515,3.41405134,148.66,148.61,0.04555688]
[1724437815218,0.05145134,148.66,148.61,0.04555688]
[1724437815814,0.05145134,148.66,148.62,3.3635]
[1724437816009,0.05145134,148.66,148.62,42.65]
[1724437816214,3.3614,148.72,148.66,3.3624]
[1724437816417,3.3614,148.72,148.67,1.2854]
[1724437816620,69.53,148.77,148.67,1.2854]
[1724437816816,42.65,148.75,148.67,1.2854]
[1724437817322,3.3615,148.71,148.7,0.05079299]
[1724437819916,0.04759989,148.72,148.7,0.05079299]
[1724437822217,46.01011584,148.81,148.71,42.65]
[1724437822420,10.1269315,148.91,148.71,42.65]
[1724437822421,42.65,148.84,148.71,42.65]
[1724437822817,3.33804518,148.83,148.74,42.65]
[1724437823020,42.65,148.86,148.75,1.3285]
[1724437823216,0.04852105,148.8,148.77,0.0445943]
[1724437823421,42.65,148.88,148.76,42.65]
[1724437823620,42.65,148.88,148.77,1.38220625]
[1724437823931,0.04932051,148.84,148.81,0.05098381]
[1724437824115,72.9428315,148.91,148.81,0.04722959]
[1724437824316,0.05064462,148.87,148.85,0.04507889]
[1724437825220,3.3581,148.86,148.85,0.04507889]
[1724437826517,3.40854462,148.87,148.85,0.04507889]
[1724437826720,0.05064462,148.87,148.85,0.04507889]
[1724437830724,0.05064462,148.87,148.86,3.3581]
[1724437830916,0.05064462,148.87,148.86,4.729]
[1724437831920,3.357,148.92,148.87,3.3577]
[1724437832628,3.357,148.92,148.82,3.43766506]
[1724437832629,42.65,148.89,148.74,3.4029236]
[1724437832816,42.65,148.89,148.79,1.3461]
[1724437833122,42.65,148.87,148.79,1.3461]
[1724437833327,42.65,148.87,148.69,42.65]
[1724437833328,42.65,148.8,148.69,42.65]
[1724437833521,3.38225676,148.87,148.72,42.65]
[1724437833824,3.3599,148.78,148.72,42.65]
[1724437834022,0.04983609,148.76,148.74,0.04548056]
[1724437834225,3.3606,148.75,148.74,0.04548056]
[1724437834521,0.04983609,148.76,148.74,0.04548056]
[1724437836528,3.41023609,148.76,148.74,0.04548056]
[1724437837027,0.04983609,148.76,148.74,0.04548056]
[1724437837925,3.3606,148.75,148.74,0.04548056]
[1724437839032,46.0106,148.75,148.74,0.04548056]
[1724437839220,42.65,148.75,148.68,1.3461]
[1724437839428,42.65,148.75,148.67,1.382]
[1724437839622,42.65,148.75,148.67,4.7444]
[1724437839823,42.65,148.75,148.63,2.6195]
[1724437840021,42.65,148.75,148.63,3.976]
[1724437840221,0.044367,148.7,148.68,0.05161169]
[1724437840421,42.65,148.72,148.68,0.05161169]
[1724437840623,0.04759174,148.7,148.63,3.976]
[1724437840824,42.65,148.69,148.63,2.6195]
[1724437841029,42.65,148.66,148.65,0.04298734]
[1724437841424,42.65,148.66,148.58,3.43833869]
[1724437841619,42.65,148.68,148.58,3.43833869]
[1724437841620,42.65,148.61,148.58,3.43833869]
[1724437841819,42.65,148.61,148.55,1.3028]
[1724437842123,42.65,148.58,148.55,1.3028]
[1724437842323,42.65,148.58,148.49,1.2753]
[1724437842729,0.05094702,148.55,148.52,0.04284287]
[1724437843228,3.3655,148.53,148.52,0.04284287]
[1724437843628,42.65,148.53,148.38,42.65]
[1724437843931,42.65,148.53,148.44,1.3928]
[1724437844126,42.65,148.56,148.44,1.3928]
[1724437844336,42.65,148.56,148.47,3.3669]
[1724437844830,42.65,148.58,148.45,44.0011]
[1724437845136,0.05040607,148.53,148.5,0.05123159]
[1724437845429,3.366,148.51,148.5,0.05123159]
[1724437846230,46.016,148.51,148.5,0.05123159]
[1724437846932,42.65,148.51,148.36,42.65]
[1724437847136,42.70040607,148.53,148.39,1.387]
[1724437847137,42.65,148.47,148.39,1.387]
[1724437847434,42.65,148.47,148.39,4.7555]
[1724437847632,3.3674,148.45,148.39,1.387]
[1724437847826,3.3674,148.45,148.4,3.3685]
[1724437848027,0.04255694,148.44,148.41,0.04809249]
[1724437850332,26.9,148.56,148.41,0.04809249]
[1724437850527,20.16,148.66,148.48,42.65]
[1724437850729,26.9,148.67,148.49,1.2873]
[1724437851030,42.65,148.62,148.5,42.65]
[1724437851328,3.3632,148.64,148.52,42.65]
[1724437851530,0.04765901,148.57,148.55,0.04927392]
[1724437851729,0.04765901,148.57,148.52,42.65]
[1724437851730,30.31215575,148.67,148.57,42.65]
[1724437851931,30.2626,148.67,148.6,3.3639]
[1724437852135,42.65,148.72,148.6,42.65]
[1724437852436,3.3619,148.69,148.63,3.3633]
[1724437852630,0.04973094,148.67,148.65,0.050269]
[1724437852828,0.04586627,148.67,148.65,0.05019098]
[1724437853025,3.40826627,148.67,148.65,0.05019098]
[1724437853230,42.69586627,148.67,148.65,0.05019098]
[1724437853627,42.69586627,148.67,148.56,3.3648]
[1724437853833,42.65,148.64,148.52,42.65]
[1724437854233,3.3637,148.62,148.54,3.3651]
[1724437854434,3.3637,148.62,148.52,42.65]
[1724437854633,0.04246624,148.58,148.56,0.04430589]
[1724437856132,3.40709003,148.65,148.56,0.04430589]
[1724437856332,42.65,148.67,148.54,1.2757]
[1724437856843,42.65,148.67,148.56,42.65]
[1724437857132,0.04386642,148.63,148.6,0.04856255]
[1724437859333,3.3637,148.61,148.6,0.04856255]
[1724437859535,0.04386642,148.63,148.6,0.04856255]
[1724437859734,0.04386642,148.63,148.62,3.3635]
[1724437860035,42.65,148.73,148.6,42.65]
[1724437860242,3.3619,148.7,148.64,3.363]
[1724437860440,42.65,148.73,148.65,1.376]
[1724437860836,3.3621,148.69,148.68,0.05036401]
[1724437861434,0.04495414,148.7,148.68,0.05036401]
[1724437861435,3.40665414,148.7,148.68,0.05036401]
[1724437862344,0.04495414,148.7,148.68,0.05036401]
[1724437863137,42.65,148.8,148.68,0.05036401]
[1724437863437,42.65,148.8,148.67,42.65]
[1724437863632,46.09573441,148.8,148.67,42.65]
[1724437863834,42.65,148.78,148.65,44.026]
[1724437864043,42.65,148.73,148.65,1.376]
[1724437864236,42.70150647,148.73,148.7,0.04650027]
[1724437864438,3.3615,148.71,148.7,0.04650027]
[1724437864939,49.43101321,148.71,148.7,0.04650027]
[1724437865139,46.0115,148.71,148.7,0.04650027]
[1724437865835,3.3632,148.64,148.61,1.41]
[1724437866034,42.65,148.68,148.59,1.3291]
[1724437866333,42.65,148.65,148.59,1.3291]
[1724437866534,3.3637,148.62,148.59,1.3291]
[1724437866944,42.65,148.65,148.59,1.3291]
[1724437867339,42.65,148.7,148.59,1.3291]
[1724437867533,45.96843366,148.72,148.59,44.02576947]
[1724437867738,42.65,148.72,148.61,42.65]
[1724437867937,42.65,148.72,148.62,1.3105]
[1724437868137,46.00138932,148.72,148.63,3.3631]
[1724437868343,46.00138932,148.72,148.63,1.3548]
[1724437868540,0.04435939,148.69,148.66,0.04280489]
[1724437868748,3.3622,148.68,148.66,0.04280489]
[1724437869043,0.04435939,148.69,148.66,0.04280489]
[1724437870137,3.3622,148.68,148.66,0.04280489]
[1724437870338,0.04435939,148.69,148.66,0.04280489]
[1724437871334,3.3624,148.68,148.66,0.04280489]
[1724437871540,0.04435939,148.69,148.66,0.04280489]
[1724437872036,3.3622,148.68,148.66,0.04280489]
[1724437872640,0.04435939,148.69,148.66,0.04280489]
[1724437873147,3.3624,148.67,148.66,0.04280489]
[1724437873342,46.0124,148.67,148.66,0.04280489]
[1724437873535,42.65,148.67,148.59,1.3291]
[1724437873845,3.3638,148.61,148.59,1.3291]
[1724437874241,42.65,148.67,148.59,1.3291]
[1724437874242,3.3636,148.62,148.59,1.3291]
[1724437874544,0.05129766,148.62,148.59,1.3793551]
[1724437874848,3.364,148.6,148.59,1.3793551]
[1724437876048,3.364,148.6,148.59,0.0502551]
[1724437876437,3.3649,148.56,148.55,1.3451]
[1724437877034,3.3642,148.6,148.55,1.3451]
[1724437877241,3.34836926,148.62,148.55,1.3451]
[1724437877538,0.04889041,148.6,148.57,0.0497498]
[1724437877746,0.04889041,148.6,148.57,0.04992118]
[1724437877747,0.04557519,148.6,148.57,0.04992118]
[1724437878639,42.65,148.62,148.55,1.3451]
[1724437879142,26.9,148.7,148.55,1.3451]
[1724437879143,42.65,148.64,148.55,1.3451]
[1724437879339,3.3639,148.61,148.56,3.3649]
[1724437879535,3.3639,148.61,148.55,1.3451]
[1724437879536,0.05140533,148.6,148.57,0.04828483]
[1724437879740,3.3644,148.59,148.57,0.04828483]
[1724437880342,3.41540533,148.6,148.57,0.04828483]
[1724437880746,0.05140533,148.6,148.57,0.04828483]
[1724437881344,0.05140533,148.6,148.57,3.41288483]
[1724437881645,0.05140533,148.6,148.57,0.04828483]
[1724437881844,3.41540533,148.6,148.57,0.04828483]
[1724437882146,0.05140533,148.6,148.57,0.04828483]
[1724437882347,42.65,148.67,148.58,3.3644]
[1724437882546,42.65,148.64,148.55,1.3451]
[1724437883049,3.3647,148.58,148.55,1.3451]
[1724437883247,42.65,148.62,148.55,1.3451]
[1724437883449,0.05025393,148.58,148.55,1.38913243]
[1724437883744,3.3648,148.57,148.55,1.38913243]
[1724437883950,0.05025393,148.58,148.55,1.38913243]
[1724437884446,0.05025393,148.58,148.55,0.04403243]
[1724437884645,3.3649,148.56,148.55,0.04403243]
[1724437885540,0.05025393,148.58,148.55,0.04403243]
[1724437885541,3.3647,148.57,148.55,0.04403243]
[1724437885941,0.05025393,148.58,148.55,0.04403243]
[1724437886447,3.3649,148.56,148.55,0.04403243]
[1724437887553,0.05025393,148.58,148.55,0.04403243]
[1724437887554,3.41485393,148.58,148.55,0.04403243]
[1724437887742,0.05025393,148.58,148.55,0.04403243]
[1724437887950,3.3649,148.57,148.55,0.04403243]
[1724437888348,0.05025393,148.58,148.55,0.04403243]
[1724437888645,3.3649,148.56,148.55,0.04403243]
[1724437890149,0.05025393,148.58,148.55,0.04403243]
[1724437890947,0.05025393,148.58,148.44,42.65]
[1724437890948,42.65,148.57,148.44,42.65]
[1724437891252,42.65,148.57,148.49,1.3776]
[1724437891453,3.3661,148.51,148.49,1.3776]
[1724437892449,3.41712025,148.51,148.49,1.42815402]
[1724437892745,3.3662,148.5,148.49,1.42815402]
[1724437892946,0.05102025,148.51,148.49,1.42815402]
[1724437894149,42.65,148.59,148.49,1.42815402]
[1724437894357,3.40185973,148.61,148.51,42.65]
[1724437894558,42.65,148.62,148.52,1.3651]
[1724437894858,20.16,148.69,148.53,42.65]
[1724437895357,20.16,148.69,148.52,1.3651]
[1724437895560,0.04405714,148.61,148.59,0.04977012]
[1724437895759,0.04465101,148.61,148.59,0.04977012]
[1724437897050,0.04465101,148.61,148.59,3.41377012]
[1724437897251,0.04465101,148.61,148.6,1.3406]
[1724437897950,0.04465101,148.61,148.6,4.7046]
[1724437898354,45.99309364,148.72,148.6,1.3406]
[1724437898560,45.99309364,148.72,148.6,43.9906]
[1724437898948,45.99309364,148.72,148.6,1.3406]
[1724437899154,42.65,148.69,148.6,1.3406]
[1724437899359,42.65,148.69,148.63,0.0500206]
[1724437899360,3.3628,148.65,148.63,0.0500206]
[1724437899755,62.81,148.64,148.35,3.00190408]
[1724437899953,42.65,148.61,148.44,45.3388]
[1724437900157,42.65,148.58,148.44,48.63502508]
[1724437900453,42.65,148.55,148.44,2.6888]
[1724437900656,62.81,148.6,148.44,2.6888]
[1724437900657,42.65,148.53,148.44,2.6888]
[1724437900958,3.3665,148.49,148.47,0.04864941]
[1724437901557,3.41191258,148.5,148.47,0.04864941]
[1724437901858,0.04561258,148.5,148.47,0.04864941]
[1724437902058,3.3667,148.48,148.47,0.04864941]
[1724437903762,46.0167,148.48,148.47,0.04864941]
[1724437903955,3.3674,148.45,148.44,1.3244]
[1724437904458,3.3672,148.46,148.44,1.3244]
[1724437904655,42.65,148.48,148.44,1.3244]
[1724437904850,23.49221815,148.55,148.44,1.3244]
[1724437904851,0.04792177,148.47,148.45,0.05164293]
[1724437905050,0.04792177,148.47,148.44,1.3244]
[1724437905253,0.04792177,148.47,148.45,0.04709942]
[1724437905858,20.16,148.59,148.45,0.04709942]
[1724437906051,42.65,148.54,148.44,1.3244]
[1724437906455,3.366,148.51,148.44,1.3244]
[1724437906660,42.65,148.6,148.44,1.3244]
[1724437906864,0.04926521,148.53,148.51,0.0509389]
[1724437907351,42.65,148.55,148.44,1.3244]
[1724437907549,3.3658,148.52,148.51,0.04668636]
[1724437907762,3.3658,148.52,148.46,3.3669]
[1724437907763,3.3658,148.52,148.5,0.04411408]
[1724437907961,3.41308813,148.52,148.5,0.04535695]
[1724437909158,3.366,148.51,148.5,0.04535695]
[1724437910758,46.016,148.51,148.5,0.04535695]
[1724437912462,3.3667,148.48,148.47,1.2867]
[1724437918365,42.69949704,148.49,148.46,0.05051067]
[1724437918366,3.3669,148.47,148.46,0.05051067]
[1724437918566,46.0169,148.47,148.46,0.05051067]
[1724437920072,3.3669,148.47,148.46,0.05051067]
[1724437921762,0.04949704,148.49,148.46,0.05051067]
[1724437922978,42.65,148.55,148.46,0.05051067]
[1724437923270,42.65,148.55,148.44,4.68165175]
[1724437923473,42.65,148.58,148.45,42.65]
[1724437923671,42.65,148.58,148.45,43.985]
[1724437923874,3.3654,148.54,148.5,0.05167685]
[1724437924074,0.04842072,148.53,148.5,1.42817685]
[1724437924575,3.366,148.51,148.5,0.05167685]
[1724437925566,3.3658,148.52,148.5,0.05167685]
[1724437925761,0.04842072,148.53,148.5,0.05167685]
[1724437926470,3.366,148.51,148.5,0.05167685]
[1724437926673,46.016,148.51,148.5,0.05167685]
[1724437926873,46.016,148.51,148.46,1.3765]
[1724437926874,3.3671,148.46,148.45,1.335]
[1724437928276,3.3674,148.45,148.44,1.36691126]
[1724437928570,0.04454959,148.47,148.44,1.36691126]
[1724437928877,3.3674,148.45,148.44,1.36691126]
[1724437929069,3.3674,148.45,148.44,0.04251126]
[1724437930579,3.3685,148.4,148.39,1.3096]
[1724437931079,30.2569329,148.52,148.39,1.3096]
[1724437931080,42.65,148.48,148.39,1.3096]
[1724437931671,0.04812497,148.45,148.42,0.04936265]
[1724437933570,26.92,148.52,148.41,42.65]
[1724437933766,26.92,148.52,148.43,42.65]
[1724437934182,3.3662,148.5,148.45,3.3672]
[1724437934370,3.3662,148.5,148.46,1.2861]
[1724437934878,0.04295696,148.49,148.47,1.3494047]
[1724437935774,0.04295696,148.49,148.47,4.7163047]
[1724437936083,3.3658,148.52,148.47,4.7163047]
[1724437936379,42.65,148.55,148.47,4.7163047]
[1724437936380,3.366,148.51,148.47,4.7163047]
[1724437936972,0.04972968,148.5,148.47,4.7163047]
[1724437938872,0.04972968,148.5,148.47,2.7371047]
[1724437939179,42.65,148.58,148.47,2.7371047]
[1724437939374,42.65,148.6,148.52,3.3658]
[1724437939574,42.65,148.6,148.47,45.3429]
[1724437939774,45.95472661,148.6,148.5,42.65]
[1724437940279,0.04368051,148.56,148.54,0.05170448]
[1724437940876,3.3653,148.55,148.54,0.05170448]
[1724437941272,0.04368051,148.56,148.54,0.05170448]
[1724437941978,3.40858051,148.56,148.54,0.05170448]
[1724437942376,0.04368051,148.56,148.54,0.05170448]
[1724437944782,0.04368051,148.56,148.54,3.41700448]
[1724437945280,0.04368051,148.56,148.55,1.2828]
[1724437948382,26.92,148.62,148.55,1.2828]
[1724437948383,30.256259,148.62,148.55,1.2828]
[1724437948584,3.3644,148.59,148.55,4.6479]
[1724437949286,3.3644,148.59,148.56,0.0464201]
[1724437952393,42.65,148.61,148.56,0.0464201]
[1724437952787,3.3646,148.57,148.56,0.0464201]
[1724437952987,42.65,148.61,148.56,0.0464201]
[1724437953188,30.256259,148.62,148.56,0.0464201]
[1724437953488,3.3641,148.6,148.56,3.4111201]
[1724437953688,3.3641,148.6,148.56,4.7987201]
[1724437954084,3.3639,148.61,148.57,3.3646]
[1724437954396,3.3639,148.61,148.56,1.4340201]
[1724437954397,42.65,148.68,148.58,0.04411253]
[1724437954691,42.65,148.68,148.62,0.05157983]
[1724437955087,3.3634,148.63,148.62,0.05157983]
[1724437959888,46.0134,148.63,148.62,0.05157983]
[1724437961897,3.3648,148.57,148.55,1.2828]
[1724437962995,3.3649,148.56,148.55,1.32624923]
[1724437963798,3.3649,148.56,148.55,0.04344923]
[1724437964709,3.40996717,148.57,148.55,0.04344923]
[1724437965004,0.04516717,148.57,148.55,0.04344923]
[1724437966301,0.04516717,148.57,148.55,3.40854923]
[1724437966496,0.04516717,148.57,148.55,0.04344923]
[1724437966698,42.65,148.66,148.55,0.04344923]
[1724437966905,42.65,148.66,148.56,3.29666821]
[1724437967113,3.364,148.61,148.53,44.0293]
[1724437967308,46.00420345,148.66,148.57,3.3646]
[1724437967618,3.38346312,148.63,148.6,0.04886123]
[1724437967922,0.02016312,148.63,148.6,0.04886123]
[1724437970515,3.38356312,148.63,148.6,0.04886123]
[1724437971025,3.3637,148.61,148.6,0.04886123]
[1724437972126,42.65,148.61,148.47,42.65]
[1724437972420,42.65,148.58,148.49,2.7008]